[Event "29th IND-ch U17 Open 2018"]
[Site "Sonipat"]
[Date "2018.09.09"]
[Round "9"]
[White "Sibi Visal R"]
[Black "Anup Shankar R"]
[Result "1-0"]
[ECO "A24"]
[WhiteElo "1959"]
[BlackElo "1785"]
[Annotator "NA RC"]
[PlyCount "101"]
[EventDate "2018.09.05"]
[EventCountry "IND"]
[SourceTitle "playchess.com"]
[Source "ChessBase"]
[SourceQuality "1"]
[TimeControl "5400+30"]

{[%evp 12,80,30,6,19,12,35,-2,7,-25,-29,-26,-18,-14,37,33,92,70,107,75,81,73,86,81,80,71,77,72,137,122,150,140,153,80,145,154,162,22,18,22,22,30,23,13,34,0,32767,32767,32767,32767,32767,32767,32767,32767,32767,32767,32767,32767,32767,32767,32767,32767,32767,32767,32767,32767,32767,32767,220,231,266]} 1. c4 {[%emt 0:00:00]} c6 {[%emt 0:01:41]} 2. Nf3 {[%emt 0:00:00]} Nf6 {[%emt 0:00:00]} 3. g3 {[%emt 0:00:00]} g6 {[%emt 0:00:00]} 4. Bg2 {[%emt 0:00:00]} Bg7 {[%emt 0:00:00]} 5. O-O {[%emt 0:00:01]} O-O {[%emt 0:00:01]} 6. Nc3 {[%emt 0:00:01]} d6 {[%emt 0:01:56]} 7. d3 {[%emt 0:00:33]} e5 {[%emt 0:02:19] LiveBook: 204 Games} 8. Rb1 {[%emt 0:00:01]} Nbd7 {[%emt 0:00:40]} 9. Bg5 {[%emt 0:00:01]} h6 {[%emt 0:01:09]} 10. Bxf6 {[%emt 0:00:01]} Nxf6 {[%emt 0:00:11]} 11. b4 {[%emt 0:04:02] A24: English Opening vs King's Indian: Lines without ...Nc6} Bg4 $146 {[%emt 0:05:26]} ({Predecessor:} 11... Qc7 12. b5 d5 13. bxc6 bxc6 14. cxd5 cxd5 15. Qc1 {0-1 (68) Daly,C (2265)-Petkevich,J (2440) Moscow 1994}) 12. b5 {[%emt 0:01:17]} Bxf3 {[%emt 0:04:01]} 13. Bxf3 {[%emt 0:00:00]} d5 {[%emt 0:00:19]} 14. bxc6 {[%emt 0:00:56]} bxc6 {[%emt 0:00:17]} 15. cxd5 {[%emt 0:00:00]} cxd5 {[%emt 0:04:01]} 16. Qb3 {[%emt 0:11:25]} Rb8 {[%emt 0:20:12]} 17. Qxb8 {[%emt 0:12:01]} Qxb8 {[%emt 0:00:00]} 18. Rxb8 {[%emt 0:00:08]} Rxb8 {[%emt 0:00:00]} 19. Nxd5 {[%emt 0:00:00]} Rb2 {[%emt 0:03:01]} ({Black should try} 19... Nxd5 20. Bxd5 Bf8) 20. Rc1 {[%emt 0:01:50]} Rxa2 {[%emt 0:07:15]} 21. Rc8+ {[%emt 0:00:01]} Kh7 {[%emt 0:01:06]} 22. Nxf6+ {[%emt 0:00:01]} Bxf6 {[%emt 0:00:39]} 23. Rc7 {[%emt 0:00:00]} Kg8 {[%emt 0:05:35]} 24. Kf1 {[%emt 0:00:02]} ({White should try} 24. Bd5 $16 Rxe2 25. Rxf7 (25. Bxf7+ Kf8 $16)) 24... Ra5 {[%emt 0:01:28]} 25. Rd7 {[%emt 0:00:25]} Kf8 {[%emt 0:01:30]} 26. Bd5 {[%emt 0:02:47]} Be7 {[%emt 0:01:22]} 27. Bc4 {[%emt 0:00:00]} h5 {[%emt 0:03:38]} 28. h4 {[%emt 0:00:00]} Ra1+ {[%emt 0:09:54]} 29. Kg2 {[%emt 0:00:00]} a5 {[%emt 0:00:01]} 30. Rd5 {[%emt 0:00:01]} Bf6 {[%emt 0:00:01]} 31. Rb5 {[%emt 0:00:00]} Ke8 {[%emt 0:07:49]} 32. Rb8+ {[%emt 0:00:01]} Bd8 {[%emt 0:00:00]} 33. Bxf7+ {[%emt 0:00:00]} Kxf7 {[%emt 0:00:00]} 34. Rxd8 {[%emt 0:00:00]} Ra4 {[%emt 0:05:35]} 35. Kf3 {[%emt 0:00:00]} Ke6 {[%emt 0:00:42]} 36. Ke3 {[%emt 0:00:54]} Rb4 {[%emt 0:02:28]} 37. Rg8 {[%emt 0:00:54]} Kf5 {[%emt 0:00:58]} 38. Ra8 {[%emt 0:00:01]} a4 {[%emt 0:00:00]} 39. Kf3 {[%emt 0:01:23]} Kf6 $2 {[%emt 0:06:23]} ({Better is} 39... Ke6 $14) 40. Ra6+ {[%emt 0:00:00]} Kg7 $18 {[%emt 0:00:00]} 41. e4 {[%emt 0:02:53]} Rb3 {[%emt 0:00:33]} 42. Ke3 {[%emt 0:00:00]} a3 {[%emt 0:00:00]} 43. f4 {[%emt 0:00:00]} exf4+ {[%emt 0:00:31]} 44. gxf4 {[%emt 0:00:01]} Kf7 {[%emt 0:01:02]} 45. e5 {[%emt 0:00:00]} Kg7 {[%emt 0:00:02]} 46. Ke4 {[%emt 0:00:00]} Rb4+ {[%emt 0:00:00]} 47. d4 {[%emt 0:00:23]} Rb3 {[%emt 0:00:59]} 48. Ra7+ {[%emt 0:00:01]} Kh8 {[%emt 0:03:26]} 49. e6 {[%emt 0:00:00]} Kg8 {[%emt 0:00:00]} 50. Ke5 {[%emt 0:00:18]} Kf8 {[%emt 0:01:04]} 51. Kf6 {[%emt 0:00:00]} 1-0

[Event "29th IND-ch U17 Open 2018"]
[Site "Sonipat"]
[Date "2018.09.09"]
[Round "9"]
[White "Vinay Thomas Abraham"]
[Black "Akshit Kumar J"]
[Result "1-0"]
[ECO "B77"]
[WhiteElo "1953"]
[BlackElo "1845"]
[Annotator "NA RC"]
[PlyCount "87"]
[EventDate "2018.09.05"]
[EventCountry "IND"]
[SourceTitle "playchess.com"]
[Source "ChessBase"]
[SourceQuality "1"]
[TimeControl "5400+30"]

{[%evp 13,60,58,70,54,62,34,21,24,29,50,37,31,43,38,39,0,0,0,0,0,25,6,0,0,23,0,-11,0,-7,0,0,0,0,-120,0,0,-174,32767,32767,32767,32767,32767,284,229,501,552,552,553,520]} 1. e4 {[%emt 0:00:00]} c5 {[%emt 0:00:11]} 2. Nf3 {[%emt 0:00:07]} d6 {[%emt 0:00:36]} 3. d4 {[%emt 0:00:05]} cxd4 {[%emt 0:00:07]} 4. Nxd4 {[%emt 0:00:02]} Nf6 {[%emt 0:00:01]} 5. Nc3 {[%emt 0:00:09]} g6 {[%emt 0:00:00]} 6. Be3 {[%emt 0:00:09]} Bg7 {[%emt 0:00:01]} 7. f3 {[%emt 0:00:10]} Nc6 {[%emt 0:00:12]} 8. Qd2 {[%emt 0:00:00]} O-O {[%emt 0:00:02]} 9. Bc4 {[%emt 0:00:10]} Bd7 {[%emt 0:00:00]} 10. O-O-O {[%emt 0:00:10]} Rb8 {[%emt 0:00:04]} 11. Bb3 {[%emt 0:00:44]} Na5 {[%emt 0:00:16]} 12. Bh6 {[%emt 0:05:56] B77: Sicilian Dragon: Yugoslav Attack, 9 Bc4 sidelines} Bxh6 {[%emt 0:00:28]} 13. Qxh6 {[%emt 0:00:23]} b5 {[%emt 0:00:15]} 14. h4 {[%emt 0:05:00]} e5 {[%emt 0:00:51]} 15. Nde2 {[%emt 0:02:07]} b4 {[%emt 0:00:20]} 16. Nd5 {[%emt 0:04:17] LiveBook: 55 Games} Nxb3+ {[%emt 0:00:11]} 17. axb3 {[%emt 0:05:33]} Nxd5 {[%emt 0:00:08]} 18. Rxd5 {[%emt 0:01:25]} Rb6 {[%emt 0:05:03]} 19. h5 {[%emt 0:07:14]} g5 {[%emt 0:02:22]} 20. Rxd6 {[%emt 0:17:37] [#]} f6 $1 $146 {[%emt 0:00:18]} 21. Rhd1 {[%emt 0:04:31]} Rxd6 {[%emt 0:00:10]} 22. Rxd6 {[%emt 0:00:06]} Qe7 {[%emt 0:00:25]} 23. Rd2 {[%emt 0:08:38] [#]} (23. Rd5 $1 $11) 23... Be6 $2 {[%emt 0:19:31]} ({Black should play} 23... a5 $1 $19 24. Kb1 a4) 24. Kb1 {[%emt 0:10:49]} a5 {[%emt 0:10:41]} 25. Nc1 {[%emt 0:05:25]} Qc5 {[%emt 0:21:22]} 26. g3 {[%emt 0:00:00]} a4 {[%emt 0:05:15]} 27. bxa4 {[%emt 0:00:01]} Qg1 {[%emt 0:00:01]} (27... Qc7 $142 28. b3 Qc3) 28. Rd6 {[%emt 0:07:20]} b3 $2 {[%emt 0:07:50]} (28... Qc5 29. Rxe6 Rc8 30. Re8+ (30. Qxf6 Qxc2+ 31. Ka2 Qxa4+ 32. Kb1 Qc2+ 33. Ka2 Qxc1 $11) 30... Rxe8 31. Qxf6 Qe7 32. Qxe7 Rxe7) 29. cxb3 {[%emt 0:00:59]} (29. Rxe6 bxc2+ 30. Kxc2 Rc8+ 31. Kb3 Qd4 $19) 29... Rc8 {[%emt 0:10:09]} 30. Ka2 {[%emt 0:00:12]} Bf7 $18 {[%emt 0:00:35]} 31. Ne2 {[%emt 0:02:38]} Qe3 {[%emt 0:03:56]} 32. Nc3 {[%emt 0:01:00]} Rb8 {[%emt 0:00:28]} 33. Qxf6 {[%emt 0:01:05]} Bxb3+ {[%emt 0:01:10]} 34. Ka1 {[%emt 0:00:00]} Qc1+ {[%emt 0:02:16]} 35. Nb1 {[%emt 0:00:00]} Bc2 {[%emt 0:01:16]} 36. Qe6+ {[%emt 0:02:53]} Kf8 {[%emt 0:01:12]} 37. Qa2 {[%emt 0:02:40]} Bxb1 {[%emt 0:01:14]} 38. Qxb1 {[%emt 0:00:23]} Qc4 {[%emt 0:00:35]} 39. Qd1 {[%emt 0:00:08]} Ke8 {[%emt 0:00:35]} 40. Rd5 {[%emt 0:00:49]} Qc7 {[%emt 0:00:32]} 41. Qd2 {[%emt 0:00:31]} Ra8 {[%emt 0:00:21]} 42. Qxg5 {[%emt 0:00:44]} Rxa4+ {[%emt 0:00:21]} 43. Kb1 {[%emt 0:00:00]} Ra5 {[%emt 0:00:48]} 44. Qg8+ {[%emt 0:00:08]} 1-0

[Event "29th IND-ch U17 Open 2018"]
[Site "Sonipat"]
[Date "2018.09.09"]
[Round "9"]
[White "Rupam Mukherjee"]
[Black "Vaibhav Jayant Raut"]
[Result "1/2-1/2"]
[ECO "A48"]
[WhiteElo "1837"]
[BlackElo "1999"]
[Annotator "NA RC"]
[PlyCount "128"]
[EventDate "2018.09.05"]
[EventCountry "IND"]
[SourceTitle "playchess.com"]
[Source "ChessBase"]
[SourceQuality "1"]
[TimeControl "5400+30"]

1. d4 {[%emt 1:25:29]} Nf6 {[%emt 1:30:21]} 2. Nf3 {[%emt 0:04:58]} e6 {[%emt 0:00:38]} 3. c3 {[%emt 0:01:02]} b6 {[%emt 0:00:00]} 4. Bf4 {[%emt 0:00:25]} Bb7 {[%emt 0:01:00]} 5. e3 {[%emt 0:00:30]} d6 {[%emt 0:00:30]} 6. h3 {[%emt 0:00:29]} Nbd7 {[%emt 0:00:29]} 7. Nbd2 {[%emt 0:00:33]} g6 {[%emt 0:00:31]} 8. Be2 {[%emt 0:00:30]} Bg7 {[%emt 0:00:30]} 9. O-O {[%emt 0:00:32]} O-O {[%emt 0:00:30] LiveBook: 22 Games} 10. Rc1 {[%emt 0:00:00] A48: 1 d4 Nf6 2 Nf3 g6: Torre, London and Colle Systems} (10. a4 a5 11. Bh2 Qe7 12. Nc4 Ne4 13. Nfd2 Nxd2 14. Nxd2 f5 15. Bf3 Bxf3 16. Qxf3 Nf6 17. Qc6 Nd5 18. Rae1 Bh6 19. Re2 Qe8 20. Qc4 Qf7 21. Nf3 Rae8 22. Rfe1 Nf6 23. Bf4 Bg7 24. b4 Ne4 25. Ng5 Nxg5 26. Bxg5 {½-½ (26) Prohaszka,P (2596)-Kantans,T (2473) Minsk 2017}) 10... Qe7 {[%emt 0:00:00]} 11. Bh2 {[%emt 0:00:58]} e5 {[%emt 0:00:00]} 12. c4 $146 {[%emt 0:00:00]} ({Predecessor:} 12. dxe5 dxe5 13. Nb3 Rfd8 14. Nfd2 a5 15. a4 Nc5 16. Bf3 e4 17. Be2 Nxb3 18. Qxb3 Rxd2 {0-1 (27) Cereijo,N (2130)-Valles Moreno,I (2443) Pontevedra 2016}) 12... c5 {[%emt 0:00:00]} 13. Nb1 {[%emt 0:01:03]} Ne4 {[%emt 0:00:00]} 14. dxe5 {[%emt 0:00:30]} dxe5 {[%emt 0:00:00]} 15. Nfd2 {[%emt 0:00:29]} Nxd2 {[%emt 0:00:00]} 16. Qxd2 {[%emt 0:00:00]} Nf6 {[%emt 0:00:00]} (16... Qg5 $15 17. Bg3 Nf6) 17. Nc3 {[%emt 0:01:01]} Ne4 {[%emt 0:00:00]} 18. Nxe4 {[%emt 0:00:30]} (18. Nd5 $5 {[%cal Rd5e7]} Qg5 19. Qc2 $11) 18... Bxe4 {[%emt 0:04:29]} 19. f3 {[%emt 0:00:28]} Rad8 {[%emt 0:00:29]} 20. Qc3 {[%emt 0:00:29]} Bc6 {[%emt 0:00:31]} 21. e4 {[%emt 0:00:33]} Rd4 {[%emt 0:00:00]} 22. Rcd1 {[%emt 0:00:18]} f5 {[%emt 0:00:00]} 23. exf5 {[%emt 0:00:43]} gxf5 {[%emt 0:01:32]} 24. Qc2 {[%emt 0:00:00]} Kh8 {[%emt 0:00:29]} 25. Kh1 {[%emt 0:00:00]} e4 {[%emt 0:00:30]} 26. Bg1 {[%emt 0:01:29]} Rxd1 {[%emt 0:00:28]} 27. Rxd1 {[%emt 0:00:30]} exf3 {[%emt 0:00:00]} 28. Bxf3 {[%emt 0:00:30]} Bxf3 {[%emt 0:01:02]} 29. gxf3 {[%emt 0:00:30]} Qh4 {[%emt 0:00:00]} 30. Qh2 {[%emt 0:00:30]} Qxc4 {[%emt 0:01:00]} 31. Rd7 {[%emt 0:00:00]} f4 {[%emt 0:00:25]} 32. b3 {[%emt 0:00:59]} Qe6 {[%emt 0:00:27]} 33. Rd2 {[%emt 0:00:32]} Qf5 {[%emt 0:00:37]} 34. Qg2 {[%emt 0:00:30]} Rg8 {[%emt 0:00:30]} 35. Qg4 {[%emt 0:00:30]} Qf8 {[%emt 0:00:29]} 36. Qh4 {[%emt 0:00:25]} Qf7 {[%emt 0:00:33]} 37. Rg2 {[%emt 0:00:33]} Qf5 {[%emt 0:00:30]} 38. Rg5 {[%emt 0:00:30]} Qd3 {[%emt 0:00:30]} 39. Qg4 {[%emt 0:00:30]} Qd6 {[%emt 0:00:26]} 40. Qh5 {[%emt 0:00:30]} Qe6 {[%emt 0:00:34]} 41. Rg4 {[%emt 0:00:27]} Qf6 {[%emt 0:00:30]} 42. Rh4 {[%emt 0:00:34]} h6 {[%emt 0:00:29]} 43. Rg4 {[%emt 0:00:31]} Bf8 {[%emt 0:00:29]} 44. Bf2 {[%emt 0:00:30]} Rxg4 {[%emt 0:00:30]} 45. hxg4 {[%emt 0:00:30]} Qe6 {[%emt 0:00:30]} 46. Kg2 {[%emt 0:00:28]} Kg7 {[%emt 0:00:31]} 47. Qh1 {[%emt 0:00:29]} Bd6 {[%emt 0:00:31]} 48. Qa1+ {[%emt 0:00:31]} Qe5 {[%emt 0:00:29]} 49. Qd1 {[%emt 0:00:30]} h5 {[%emt 0:00:31]} 50. Qd3 {[%emt 0:00:30]} hxg4 {[%emt 0:00:30]} 51. fxg4 {[%emt 0:00:32]} Kh6 {[%emt 0:00:28]} 52. Qh3+ {[%emt 0:00:30]} Kg6 {[%emt 0:00:26]} 53. Qd3+ {[%emt 0:00:30]} Kg5 {[%emt 0:00:36]} 54. Qh3 {[%emt 0:00:28]} Qd5+ {[%emt 0:00:30]} 55. Qf3 {[%emt 0:00:25]} Qxf3+ {[%emt 0:00:30]} 56. Kxf3 {[%emt 0:00:37]} b5 {[%emt 0:00:28]} 57. Be1 {[%emt 0:00:29]} Be5 {[%emt 0:00:32]} 58. Bd2 {[%emt 0:00:30]} c4 {[%emt 0:00:30]} 59. bxc4 {[%emt 0:00:30]} bxc4 {[%emt 0:00:30]} 60. a4 {[%emt 0:00:30]} c3 {[%emt 0:00:30]} 61. Bc1 {[%emt 0:00:30]} c2 {[%emt 0:00:30]} 62. a5 {[%emt 0:00:00]} a6 {[%emt 0:00:29]} 63. Bd2 {[%emt 0:00:59]} Bc7 {[%emt 0:00:29]} 64. Bc1 {[%emt 0:00:32]} Kh4 $19 {[%emt 0:00:31]} 1/2-1/2

[Event "29th IND-ch U17 Open 2018"]
[Site "Sonipat"]
[Date "2018.09.10"]
[Round "10"]
[White "Vaibhav Jayant Raut"]
[Black "Saypuri Srithan"]
[Result "1/2-1/2"]
[ECO "A96"]
[WhiteElo "1999"]
[BlackElo "1749"]
[Annotator "NA RC"]
[PlyCount "70"]
[EventDate "2018.09.05"]
[EventCountry "IND"]
[SourceTitle "playchess.com"]
[Source "ChessBase"]
[SourceQuality "1"]
[TimeControl "5400+30"]

{[%evp 11,68,34,50,40,55,29,43,34,37,7,31,29,70,66,55,47,37,41,49,25,31,23,52,50,52,40,63,45,69,57,81,6,12,18,15,8,20,0,0,0,0,0,0,0,0,0,0,0,0,0,0,0,0,0,0,0,17,4,8]} 1. d4 {[%emt 0:00:00]} f5 {[%emt 0:00:31]} 2. Nf3 {[%emt 0:00:04]} Nf6 {[%emt 0:00:56]} 3. g3 {[%emt 0:00:03]} e6 {[%emt 0:00:02]} 4. Bg2 {[%emt 0:00:03]} Be7 {[%emt 0:00:06]} 5. O-O {[%emt 0:00:01]} O-O {[%emt 0:00:03]} 6. c4 {[%emt 0:00:05]} d6 {[%emt 0:00:04]} 7. Nc3 {[%emt 0:00:04]} a5 {[%emt 0:00:02] LiveBook: 361 Games} 8. Qb3 {[%emt 0:07:54] A96: Classical Dutch: Fluid Systems: Early deviations} (8. Qc2 Na6 9. a3 d5 10. Bf4 Ne4 11. Rac1 c6 12. Be5 Bd7 13. e3 Be8 14. Ne2 g5 15. Ne1 Nb8 16. Nd3 {1-0 (45) Van Wely,L (2691)-Gautier,S (2570) Aix les Bains 2012}) 8... Kh8 {[%emt 0:01:34]} 9. Re1 {[%emt 0:02:56]} Ne4 {[%emt 0:10:59]} 10. Nd2 {[%emt 0:06:45]} Nxd2 $146 {[%emt 0:02:17]} ({Predecessor:} 10... Nxc3 11. bxc3 a4 12. Qb1 Nc6 13. e4 e5 14. exf5 exd4 15. Bxc6 bxc6 16. cxd4 Bxf5 {½-½ (40) Hahn,W-Mann,W DDR 1979}) 11. Bxd2 {[%emt 0:00:00]} Nc6 {[%emt 0:00:08]} 12. d5 {[%emt 0:08:14]} Ne5 {[%emt 0:03:11]} 13. f4 {[%emt 0:14:51]} Nd7 {[%emt 0:00:03]} 14. dxe6 {[%emt 0:00:16]} Nc5 {[%emt 0:00:02]} 15. Qc2 {[%emt 0:00:04]} Bxe6 {[%emt 0:00:05]} 16. Nd5 {[%emt 0:00:05]} c6 {[%emt 0:06:39]} 17. Nxe7 {[%emt 0:02:01]} Qxe7 {[%emt 0:00:01]} 18. e4 {[%emt 0:09:25]} Qf7 {[%emt 0:03:46]} 19. e5 $1 {[%emt 0:02:39]} dxe5 {[%emt 0:06:12]} 20. Rxe5 {[%emt 0:00:28]} Nd7 {[%emt 0:00:57]} 21. Rxa5 {[%emt 0:03:46]} ({White should try} 21. Re3 $14) 21... Rxa5 {[%emt 0:00:16]} 22. Bxa5 {[%emt 0:00:01]} Bxc4 {[%emt 0:00:03]} 23. b3 {[%emt 0:08:30]} Bd5 {[%emt 0:00:21]} 24. Rd1 {[%emt 0:02:19]} Bxg2 {[%emt 0:04:08]} 25. Kxg2 {[%emt 0:00:20]} Re8 {[%emt 0:00:15]} 26. Bc3 {[%emt 0:04:37]} h6 {[%emt 0:11:52]} 27. Rd6 {[%emt 0:00:01]} Re6 {[%emt 0:00:01]} 28. Rd2 {[%emt 0:00:30]} Re8 {[%emt 0:04:01]} 29. h3 {[%emt 0:06:47]} Nb6 {[%emt 0:02:10]} 30. Be5 {[%emt 0:00:42]} Nd5 {[%emt 0:02:32]} 31. Qc5 {[%emt 0:00:02]} Qd7 {[%emt 0:00:00]} 32. Kh2 {[%emt 0:01:19]} Qf7 {[%emt 0:01:23]} 33. a4 {[%emt 0:01:22]} Qh5 {[%emt 0:02:53]} 34. b4 {[%emt 0:02:21]} Qf3 $11 {[%emt 0:04:35]} 35. Rf2 {[%emt 0:01:28]} Qd3 {[%emt 0:03:50]} 1/2-1/2

[Event "29th IND-ch U17 Open 2018"]
[Site "Sonipat"]
[Date "2018.09.10"]
[Round "10"]
[White "Manish Anto Cristiano F"]
[Black "Vinay Thomas Abraham"]
[Result "1-0"]
[ECO "B01"]
[WhiteElo "1995"]
[BlackElo "1953"]
[Annotator "NA RC"]
[PlyCount "94"]
[EventDate "2018.09.05"]
[EventCountry "IND"]
[SourceTitle "playchess.com"]
[Source "ChessBase"]
[SourceQuality "1"]
[TimeControl "5400+30"]

{[%evp 8,94,81,50,62,47,32767,32767,32767,32767,56,10,32767,32767,-13,-16,-7,0,-4,0,33,16,27,-14,-9,-7,-4,-8,-9,-10,-14,-3,-15,0,9,0,84,-35,-33,-34,-23,-30,-37,-23,112,120,123,139,32767,32767,32767,32767,32767,32767,32767,32767,169,184,198,200,191,241,215,286,309,245,274,345,306,331,388,349,454,510,722,388,532,775,549,791,1083,2860,1177,3710,1947,6681,6631,29971,29969]} 1. e4 {[%emt 0:00:00]} d5 {[%emt 0:00:12]} 2. exd5 {[%emt 0:00:18]} Nf6 {[%emt 0:00:15]} 3. d4 {[%emt 0:00:25]} Nxd5 {[%emt 0:00:15]} 4. Nf3 {[%emt 0:00:27]} g6 {[%emt 0:00:16]} 5. Be2 {[%emt 0:00:32]} Bg7 {[%emt 0:00:01]} 6. O-O {[%emt 0:01:22]} O-O {[%emt 0:02:00]} 7. c4 {[%emt 0:00:01]} Nb6 {[%emt 0:01:16]} 8. Nc3 {[%emt 0:00:01]} Nc6 {[%emt 0:04:18]} 9. Be3 {[%emt 0:02:18]} Bg4 {[%emt 0:07:58]} 10. d5 {[%emt 0:09:06]} Bxf3 {[%emt 0:04:15]} 11. Bxf3 {[%emt 0:01:50]} Ne5 {[%emt 0:02:47]} 12. Bxb6 {[%emt 0:01:22] LiveBook: 3 Games B01: Scandinavian Defence} (12. c5 Nbc4 13. Bc1 Nxf3+ 14. Qxf3 c6 15. dxc6 Ne5 16. Qe4 Nxc6 17. Be3 Qa5 18. Rab1 Rfd8 19. b4 Qc7 20. Rfc1 {1-0 (35) Zambrana,O (2425)-Matsuura,E (2473) Santos 2006}) 12... cxb6 {[%emt 0:17:20]} 13. Be2 $1 {[%emt 0:00:52]} Rc8 {[%emt 0:01:28]} 14. Qb3 {[%emt 0:00:01]} Nd7 {[%emt 0:21:26]} 15. Rad1 $146 {[%emt 0:01:05]} ({Predecessor:} 15. Rac1 a6 16. Bf3 Ne5 17. Be2 Nd7 18. Bf3 Ne5 19. Be2 Qc7 {0-1 (33) Naylor,J (2189)-Rogers,J (2329) England 2010}) 15... Bxc3 {[%emt 0:01:40]} 16. Qxc3 {[%emt 0:00:21]} b5 {[%emt 0:01:39]} 17. Qd4 {[%emt 0:09:12]} bxc4 {[%emt 0:03:44]} 18. Bxc4 {[%emt 0:00:15]} Nb6 {[%emt 0:01:41]} 19. Bb3 {[%emt 0:00:17]} Qd6 {[%emt 0:01:01]} 20. Rfe1 {[%emt 0:00:58]} Rfd8 {[%emt 0:02:10]} 21. h4 {[%emt 0:01:23]} e6 {[%emt 0:21:34] [#]} (21... a5 $11 {keeps the balance.} 22. a4 Nd7) 22. dxe6 {[%emt 0:00:00]} (22. Qf6 $1 $16 Nd7 {[#]} 23. Qxf7+ $1 {[%mdl 512]} Kxf7 24. dxe6+ Ke7 25. exd7+ Kxd7 26. Be6+ Kc7 27. Rxd6 Kxd6 28. Bxc8 Rxc8 29. Re2) 22... Qxd4 {[%emt 0:01:35]} 23. exf7+ {[%emt 0:00:04]} Kg7 {[%emt 0:00:00]} 24. Rxd4 {[%emt 0:00:04]} Rxd4 {[%emt 0:00:00]} 25. Re8 $1 {[%emt 0:00:09]} Rf4 {[%emt 0:00:05] [#]} (25... Rc1+ $11 26. Kh2 Nd7 27. Rg8+ Kf6) 26. Rg8+ $1 {[%emt 0:00:04]} Kh6 {[%emt 0:00:24]} 27. g3 {[%emt 0:00:00]} Rf6 {[%emt 0:03:33]} 28. g4 {[%emt 0:00:37]} Rxf7 {[%emt 0:00:33]} 29. Bxf7 {[%emt 0:00:05]} Rxg8 {[%emt 0:00:00]} 30. Bxg8 {[%emt 0:00:00]} g5 {[%emt 0:00:00]} 31. Kg2 {[%emt 0:00:00]} Kg7 {[%emt 0:00:00]} 32. Bb3 {[%emt 0:00:05]} gxh4 {[%emt 0:00:00]} 33. Kh3 {[%emt 0:00:00]} a5 {[%emt 0:00:04]} 34. a4 {[%emt 0:00:00]} ({But not} 34. Kxh4 $6 h6 $18) 34... Nd7 {[%emt 0:00:48]} 35. Kxh4 {[%emt 0:00:06]} Ne5 {[%emt 0:00:44]} 36. Bc2 {[%emt 0:00:39]} h6 {[%emt 0:01:45]} 37. f4 {[%emt 0:00:00]} Nc4 {[%emt 0:00:14]} 38. b3 {[%emt 0:00:41]} Ne3 {[%emt 0:00:43]} 39. Bd3 {[%emt 0:00:16]} b6 {[%emt 0:00:37]} 40. Bc4 {[%emt 0:00:47]} Kf6 {[%emt 0:00:27]} 41. Kg3 {[%emt 0:00:18]} Nc2 {[%emt 0:00:51]} 42. Kf3 {[%emt 0:00:00]} Nd4+ {[%emt 0:00:34]} 43. Ke4 {[%emt 0:00:00]} Nc6 {[%emt 0:00:45]} 44. Kd5 {[%emt 0:00:11]} Ne7+ {[%emt 0:00:16]} 45. Kd6 {[%emt 0:00:18]} Ng6 {[%emt 0:00:00]} 46. g5+ {[%emt 0:00:03]} hxg5 {[%emt 0:00:10]} 47. fxg5+ {[%emt 0:00:00]} Kxg5 {[%emt 0:01:02]} 1-0

[Event "29th IND-ch U17 Open 2018"]
[Site "Sonipat"]
[Date "2018.09.10"]
[Round "10"]
[White "Sambarta Banerjee"]
[Black "Om Kharola"]
[Result "0-1"]
[ECO "D31"]
[WhiteElo "1904"]
[BlackElo "2042"]
[Annotator "NA RC"]
[PlyCount "52"]
[EventDate "2018.09.05"]
[EventCountry "IND"]
[SourceTitle "playchess.com"]
[Source "ChessBase"]
[SourceQuality "1"]
[TimeControl "5400+30"]

{[%evp 8,52,37,17,10,21,32767,32767,32767,32767,35,12,35,32767,32767,32767,32767,32767,32767,32767,32767,32767,32767,32767,32767,12,0,-15,32767,-394,-414,-429,-380,-29991,32767,32767,32767,32767,-29994,-29994,-29995,-29995,-29996,-29996,-29997,-29998,-29999]} 1. d4 {[%emt 0:00:00]} d5 {[%emt 0:00:01]} 2. c4 {[%emt 0:02:47]} e6 {[%emt 0:00:03]} 3. Nc3 {[%emt 0:00:03]} c6 {[%emt 0:00:03]} 4. Nf3 {[%emt 0:00:55]} dxc4 {[%emt 0:00:05]} 5. a4 {[%emt 0:00:03]} Bb4 {[%emt 0:00:04]} 6. e3 {[%emt 0:00:11]} b5 {[%emt 0:00:07]} 7. Bd2 {[%emt 0:00:01]} a5 {[%emt 0:00:04]} 8. axb5 {[%emt 0:00:01]} Bxc3 $1 {[%emt 0:00:06]} 9. Bxc3 {[%emt 0:00:03]} cxb5 {[%emt 0:00:05]} 10. b3 {[%emt 0:00:14]} Bb7 {[%emt 0:00:07]} 11. bxc4 {[%emt 0:00:03]} b4 {[%emt 0:00:04]} 12. Bb2 {[%emt 0:00:04]} Nf6 {[%emt 0:00:12]} 13. Bd3 {[%emt 0:00:01]} Nbd7 {[%emt 0:00:19]} 14. O-O {[%emt 0:00:52]} O-O {[%emt 0:00:01]} 15. Re1 {[%emt 0:00:01]} Ne4 {[%emt 0:00:09] D31: Queen's Gambit Declined: Semi-Slav without ...Nf6 (+ Marshall Gambit and Noteboom) and Exchange Variation lines without ...Nf6} 16. Qc2 {[%emt 0:01:11]} (16. c5 Bc6 17. Qc2 f5 18. Bc4 Qe7 19. Bb3 Kh8 20. Red1 Qe8 21. Ba4 Bxa4 22. Rxa4 Ndf6 23. Rda1 {0-1 (35) Kasimdzhanov,R (2705)-Grischuk,A (2810) Tbilisi 2015 CBM 165 [Krasenkow,M]}) 16... f5 {[%emt 0:00:11]} 17. Nd2 {[%emt 0:03:05] LiveBook: 3 Games} Qh4 {[%emt 0:10:38]} 18. Rf1 $2 $146 {[%emt 0:18:25]} (18. Nxe4 $11 fxe4 19. Bf1) ({Predecessor:} 18. Nf1 Ndf6 19. f3 Ng5 20. Qf2 Qh6 21. h4 Nf7 22. d5 exd5 23. c5 {1-0 (47) Almagro Llamas,P (2429)-Fiala,V (2217) Gibraltar 2016}) 18... Nxd2 {[%emt 0:00:24]} 19. Qxd2 {[%emt 0:00:02] [#]} Bxg2 $1 {[%emt 0:00:14]} 20. Kxg2 $2 {[%emt 0:06:43]} (20. f3 $19 Bxf1 21. Rxf1) 20... Qg4+ {[%emt 0:00:04]} 21. Kh1 {[%emt 0:00:01]} Qf3+ {[%emt 0:00:03]} 22. Kg1 {[%emt 0:00:00]} Rf6 {[%emt 0:01:01]} 23. Rfb1 {[%emt 0:00:27]} Qh3 {[%emt 0:00:39]} 24. f4 {[%emt 0:11:39]} Rg6+ {[%emt 0:00:00]} 25. Kf2 {[%emt 0:00:02]} Rg2+ {[%emt 0:00:23]} 26. Ke1 {[%emt 0:00:01]} Rg1+ {[%emt 0:00:09]} 0-1